Cogmind - Beta 16 @@@ ROGUE MODE // 2025.11.17 @ 16:40:53 Player: VivI Result: Self-destructed Performance ------------- Evolutions (2) 1000 Regions Visited (3) 600 Robots Destroyed (35) 175 Value Destroyed (765) 765 Prototype IDs (0) 0 Alien Tech Used (0) 0 Bonus (0) 0 TOTAL SCORE: 2540 Bonus ------- None Cogmind --------- Core Integrity 485/550 Matter 6/300 Energy 125/125 System Corruption 0% Temperature Cool (11) Movement Rolling (120) Ox2 Location -8/Materials Parts ------- > --- POWER (1) -------- Light Ion Engine > --- PROPULSION (3) --- Compact Wheel > --- UTILITY (4) ------ Small Storage Unit Medium Storage Unit Improved Terrain Scanner Hardened Light Armor Plating > --- WEAPON (3) ------- Light Assault Rifle Rocket Launcher Rocket Launcher > --- INVENTORY (10) --- Assault Rifle Mini Grenade Launcher Peak State ------------ > --- POWER ------------ Light Ion Engine > --- PROPULSION ------- Wheel Wheel Compact Wheel > --- UTILITY ---------- Small Storage Unit Medium Storage Unit Improved Terrain Scanner Hardened Light Armor Plating > --- WEAPON ----------- Light Assault Rifle Rocket Launcher Rocket Launcher > --- INVENTORY -------- Wheel Assault Rifle Mini Grenade Launcher [Rating: 16] Favorites ----------- Power Light Ion Engine Engine Light Ion Engine Power Core Light Nuclear Core Propulsion Compact Wheel Wheel Compact Wheel Utility Small Storage Unit Device Structural Scanner Storage Small Storage Unit Protection Hardened Light Armor Plating Weapon Rocket Launcher Ballistic Gun Assault Rifle Launcher Rocket Launcher Build | -11 -10 -9 -8 ------- Run | Yrd Mat Mat Mat Slots Evolved 4 | . . 2 2 Power . | . . . . Propulsion 1 | . . 1 . Utility 2 | . . 1 1 Weapon 1 | . . . 1 Parts Attached 20 | 6 4 8 2 Power 3 | 1 1 1 . Engine 2 | 1 . 1 . Core 1 | . 1 . . Reactor . | . . . . Propulsion 6 | 2 1 2 1 Treads . | . . . . Leg . | . . . . Wheel 6 | 2 1 2 1 Hover . | . . . . Flight . | . . . . Utility 5 | 1 1 2 1 Device 2 | . 1 . 1 Storage 2 | 1 . 1 . Processor . | . . . . Hackware . | . . . . Protection 1 | . . 1 . Artifact . | . . . . Weapon 6 | 2 1 3 . Energy Gun . | . . . . Energy Cannon . | . . . . Ballistic Gun 2 | 2 . . . Ballistic Cannon . | . . . . Launcher 4 | . 1 3 . Special Weapon . | . . . . Impact Weapon . | . . . . Slashing Weapon . | . . . . Piercing Weapon . | . . . . Special Melee Weapon . | . . . . Unidentified Prototypes . | . . . . Parts Lost 9 | . 3 3 3 Power 2 | . 1 1 . Propulsion 5 | . 1 1 3 Utility 1 | . 1 . . Weapon 1 | . . 1 . Highest Loss Streak 3 | . 3 2 3 To Critical Strikes . | . . . . Average Backups 3 | 1 2 5 3 Power . | . 1 . . Propulsion 1 | . . 1 1 Utility . | . . . . Weapon 1 | . . 2 2 Tool/Special . | . . . . Unused Backups . | . . . . Power . | . . . . Propulsion . | . . . . Utility . | . . . . Weapon . | . . . . Tool/Special . | . . . . Average Slot Usage (%) 82 | . 94 70 93 Engine 6 | . 11 1 9 Core 3 | . 1 6 . Wheel 27 | . 27 29 22 Device 4 | . 9 . 7 Storage 13 | . 14 12 18 Protection 2 | . . 1 9 Ballistic Gun 6 | . 14 . 9 Launcher 16 | . 13 18 18 Peak Build Rating 16 | 6 8 12 16 Average Rating 9 | 4 6 8 15 On Entrance 6 | . 6 8 12 Avg Prop Armor Cover (%) . | . . . . Naked Turns . | . . . . Heaviest Build 33 | 11 15 31 33 Greatest Support 36 | 32 32 36 36 Greatest Overweight (x) 2 | . . 1 2 Average Overweight (x) . | . . . . Largest Inventory Capacity 10 | 8 8 10 10 Average Capacity 8 | 7 8 8 10 Most Carried 7 | 5 5 7 4 Average Carried 3 | 1 2 5 2 Final Capacity 10 | 8 8 10 10 Final Carried 5 | 1 5 4 2 Class Distribution -------------------- 82% | Mutant 12% | Scientist-Bomber 5% | Bomber Dominant Class ---------------- Mutant | -10/Materials Mutant | -9/Materials Scientist-Bomber | -8/Materials Resources | -11 -10 -9 -8 ----------- Run | Yrd Mat Mat Mat Matter Collected 559 | 206 128 142 83 Remotely . | . . . . Salvage Created 608 | . 261 205 142 Parts 54 | . 22 22 10 Haulers Intercepted 2 | . . 2 . Recyclers Shooed 2 | . 2 . . Parts Field Recycled . | . . . . Retrieved Matter . | . . . . Parts Self-Destructed . | . . . . Prevented . | . . . . Parts Restored . | . . . . Kills | -11 -10 -9 -8 ------- Run | Yrd Mat Mat Mat Combat Hostiles Destroyed 22 | . 7 10 5 Guns 1 | . 1 . . AOE 21 | . 6 10 5 Classes Destroyed 9 | . 7 2 . Worker 3 | . 1 2 . Builder 2 | . 1 . 1 Tunneler 1 | . 1 . . Hauler 2 | . . 2 . Recycler 1 | . 1 . . Watcher 4 | . 1 3 . Swarmer 9 | . 3 6 . Grunt 12 | . 4 3 5 Sentry 1 | . . 1 . Best Kill Streak 11 | . 7 11 6 Combat Bots Only 7 | . 4 7 5 Max Kills in Single Turn 5 | . 2 5 2 Gunslinging . | . . . . Exploded 4 | . 2 4 2 Melee . | . . . . Uniques/NPCs Destroyed . | . . . . Combat | -11 -10 -9 -8 -------- Run | Yrd Mat Mat Mat Hostile Shots Fired 79 | . 12 29 38 Missed 30 | . 2 14 14 Hits 49 | . 10 15 24 Projectile 49 | . 10 15 24 Critical Strikes 1 | . . . 1 Damage Taken 1192 | . 568 247 377 Core 316 | . 112 139 65 Absorbed by Shields . | . . . . Core Remaining (%) 73 | 100 55 65 . Volleys Fired 39 | . 17 14 8 Largest 2 | . 2 2 2 Hottest 66 | . 50 66 66 Shots Fired 58 | . 31 18 9 Gun 17 | . 17 . . Cannon . | . . . . Launcher 41 | . 14 18 9 Special . | . . . . Kinetic 17 | . 17 . . Thermal . | . . . . Explosive 41 | . 14 18 9 Electromagnetic . | . . . . Robot Hit Streak 13 | . 7 9 13 Robot Miss Streak 5 | . 5 1 2 Penetration Max . | . . . . Secondary Targets . | . . . . Shots Hit Robots 24 | . 9 10 5 Core Hits 65 | . 22 27 16 Critical Kills . | . . . . Critical Parts Destroyed . | . . . . Critical Strikes . | . . . . Melee Attacks . | . . . . Impact . | . . . . Slashing . | . . . . Piercing . | . . . . Sneak Attacks . | . . . . Combat Hostiles . | . . . . Follow-up Attacks . | . . . . Damage Inflicted 2270 | . 709 985 576 Guns 98 | . 98 . . Cannons . | . . . . Explosions 2170 | . 609 985 576 Melee . | . . . . Ramming 2 | . 2 . . Kinetic 98 | . 98 . . Thermal . | . . . . Explosive 2170 | . 609 985 576 Electromagnetic . | . . . . Impact . | . . . . Slashing . | . . . . Piercing . | . . . . Highest Corruption 11 | . 11 . . Average Corruption 11 | . 11 . . Corruption Purged . | . . . . Corruption Blocked . | . . . . Effects 2 | . 2 . . Matter Fused 1 | . 1 . . Data Loss (minor) 1 | . 1 . . Overload Shots . | . . . . Overflow Damage 19 | . . 19 . Projectiles . | . . . . Explosions 19 | . . 19 . Melee . | . . . . Knockbacks . | . . . . Impact . | . . . . Kinetic . | . . . . Secondary . | . . . . Self-Inflicted Damage 236 | . 141 95 . Shots 8 | . 5 3 . Rammed 1 | . 1 . . Targets Rammed 1 | . 1 . . Kicked . | . . . . Crushed . | . . . . Highest Temperature 32 | . 2 5 32 Average Temperature 8 | . 2 3 11 Received Heat Transfer 309 | . 36 39 234 Siege Activations . | . . . . Martial Activations . | . . . . Shielding Activations . | . . . . Robots Disrupted . | . . . . Combat Hostiles . | . . . . Robots Corrupted . | . . . . Combat Hostiles . | . . . . Parts Fried . | . . . . Impact Corruptions . | . . . . Robots Melted . | . . . . Combat Hostiles . | . . . . Parts Melted . | . . . . Heat Transferred . | . . . . Parts Sabotaged . | . . . . Parts Stolen . | . . . . Parts Stripped . | . . . . Power Chain Reactions . | . . . . Alert | -11 -10 -9 -8 ------- Run | Yrd Mat Mat Mat Maximum Alert Level 1 | . 1 1 1 Low Security (%) 77 | 100 94 58 90 Level 1 22 | . 5 41 9 Level 2 . | . . . . Level 3 . | . . . . Level 4 . | . . . . Level 5 . | . . . . High Security . | . . . . Max Security . | . . . . Peak Influence 354 | . 252 354 227 Initial 136 | . . 105 136 Average 125 | . 59 184 132 Influence Increases 922 | . 332 419 171 Destroy 0b10 Robot/C 440 | . 140 200 100 Destroy 0b10 Robot/NC 65 | . 25 35 5 Destroy Leader 92 | . 32 40 20 Disable Machine 75 | . 30 45 . Destroy Structure 220 | . 75 99 46 Lose Combat Pursuer 30 | . 30 . . Influence Decreases 705 | . 80 347 278 Entered New Map 335 | . . 147 188 Time Decay 280 | . 50 170 60 Lost Part 90 | . 30 30 30 Squads Dispatched 5 | . 1 1 3 Investigation 2 | . . 1 1 Extermination . | . . . . Reinforcement 2 | . 1 . 1 Assault . | . . . . Garrison 1 | . . . 1 Intercept . | . . . . Searches Triggered . | . . . . Construction Impeded . | . . . . Haulers Reinforced . | . . . . Active Scanning Responses . | . . . . Cargo Convoy Interrupts . | . . . . Stealth | -11 -10 -9 -8 --------- Run | Yrd Mat Mat Mat Distress Signals 3 | . 1 . 2 Communications Jammed . | . . . . Distress Signals . | . . . . Times Spotted 34 | . 10 12 12 Peak Tracking Total 7 | . 4 6 7 Tactical Retreats 1 | . 1 . . Traps | -11 -10 -9 -8 ------- Run | Yrd Mat Mat Mat Traps Triggered . | . . . . Indirectly . | . . . . Trap Hack Attempts . | . . . . Triggered . | . . . . Disarmed . | . . . . Reprogrammed . | . . . . Reused . | . . . . Traps Extracted . | . . . . Installed . | . . . . Triggered . | . . . . Machines | -11 -10 -9 -8 ---------- Run | Yrd Mat Mat Mat Machines Disabled 5 | . 2 3 . Max in Single Turn 1 | . 1 1 . Machines Repaired . | . . . . Machines Dismantled . | . . . . Machines Sabotaged . | . . . . Overloaded Fab Kills . | . . . . Hacking | -11 -10 -9 -8 --------- Run | Yrd Mat Mat Mat Machines Accessed 6 | . 2 2 2 Terminals 1 | . 1 . . Fabricators . | . . . . Repair Stations . | . . . . Recycling Units 3 | . 1 1 1 Scanalyzers 2 | . . 1 1 Garrison Access . | . . . . Total Hacks 19 | . 4 5 10 Successful 9 | . 1 2 6 Failed 8 | . 3 2 3 Catastrophic 1 | . . 1 . Database Lockouts 2 | . . 1 1 Manual . | . . . . Terminals 1 | . 1 . . Fabricators . | . . . . Repair Stations . | . . . . Recycling Units 9 | . 3 2 4 Scanalyzers 9 | . . 3 6 Garrison Access . | . . . . Terminal Hacks . | . . . . Fabricator Hacks . | . . . . Repair Station Hacks . | . . . . Recycling Unit Hacks 3 | . 1 . 2 Process 1 | . . . 1 Retrieve Matter 1 | . . . 1 Retrieve Components 1 | . 1 . . Scanalyzer 6 | . . 2 4 Insert Component 1 | . . 1 . Retrieve Study 5 | . . 1 4 Garrison Access Hacks . | . . . . Unauthorized Hacks . | . . . . Terminals . | . . . . Fabricators . | . . . . Repair Stations . | . . . . Recycling Units . | . . . . Scanalyzers . | . . . . Garrison Access . | . . . . Data Cores Recovered . | . . . . Used . | . . . . Hacking Detections 3 | . . 2 1 Full Trace Events 2 | . . 1 1 Feedback Events . | . . . . Feedback Blocked . | . . . . Robot Schematics Acquired . | . . . . Robots Built . | . . . . Authchips . | . . . . Time . | . . . . Total Robot Build Rating . | . . . . Part Schematics Acquired . | . . . . Parts Built . | . . . . Authchips . | . . . . Time . | . . . . Total Part Build Rating . | . . . . Part Studies Acquired 5 | . . 1 4 Parts Repaired . | . . . . Time . | . . . . Parts Recycled . | . . . . Recycled Matter 9 | . . . 9 Retrieved Matter 9 | . . . 9 Retrieved Components 2 | . 2 . . Parts Scanalyzed . | . . . . Part Schematics Acquired . | . . . . Parts Damaged . | . . . . Bothacking | -11 -10 -9 -8 ------------ Run | Yrd Mat Mat Mat Used RIF Installer . | . . . . Robots Hacked . | . . . . Non-combat . | . . . . Combat . | . . . . Robot Hacks Applied . | . . . . Relay Couplers Released . | . . . . Fabnet Peak Effective % . | . . . . Robots Rewired . | . . . . Allies Hacked . | . . . . Hacks Repelled . | . . . . Allies | -11 -10 -9 -8 -------- Run | Yrd Mat Mat Mat Total Allies . | . . . . Largest Group . | . . . . Highest-Rated Group . | . . . . Highest-Rated Ally . | . . . . Total Orders . | . . . . Ally Attacks . | . . . . Total Damage . | . . . . Kills . | . . . . Allies Corrupted . | . . . . Allies Melted . | . . . . Intel | -11 -10 -9 -8 ------- Run | Yrd Mat Mat Mat Active Infowar (turns) 292 | . 167 . 125 Terrain 125 | . . . 125 Structural 167 | . 167 . . Robot Analysis Total . | . . . . Derelict Logs Recovered . | . . . . Drone Launches . | . . . . Drone Recoveries . | . . . . Exploration | -11 -10 -9 -8 ------------- Run | Yrd Mat Mat Mat Turns Passed 764 | 49 233 351 131 Spaces Moved 513 | 42 164 201 106 Core 11 | 11 . . . Treads . | . . . . Legs . | . . . . Wheels 502 | 31 164 201 106 Hover . | . . . . Flight . | . . . . Fastest Speed 50 | 50 90 80 76 Average Speed 88 | 86 98 83 83 Slowest Speed 120 | 100 100 100 120 Overloaded Moves . | . . . . Propulsion Burnouts . | . . . . Robots Hopped . | . . . . Potential Cave-ins . | . . . . Cave-ins Triggered 1 | . 1 . . Exploration Rate (%) 16 | 2 36 21 7 Regions Visited 3 Branch Regions . Pre-discovered Areas . | . . . . Known Exits Taken . | . . . . Unknown Exits Taken 3 | 1 1 1 . Scrap Searched . | . . . . Spaces Dug . | . . . . Terrain Destroyed 247 | . 78 117 52 Melee . | . . . . Projectile . | . . . . AOE 247 | . 78 117 52 Terrain Rammed . | . . . . Walls Destroyed . | . . . . Machines Disabled . | . . . . Actions | -11 -10 -9 -8 --------- Run | Yrd Mat Mat Mat Total 760 | 54 203 364 139 Wait 167 | . 11 135 21 Move 510 | 41 163 200 106 Hop . | . . . . Pick Up 20 | 7 7 5 1 Fast Attach . | . . . . Attach 18 | 6 3 6 3 Detach . | . . . . Swap 5 | . 1 4 . Drop . | . . . . Fire 39 | . 17 14 8 Melee . | . . . . Ram 1 | . 1 . . Kick . | . . . . Crush . | . . . . Escape Stasis . | . . . . Rewire . | . . . . Trap . | . . . . Miscellaneous . | . . . . Route ------- -11/Scrapyard -10/Materials -9/Materials -8/Materials History --------- Turn | Location | Event 2 | -11/Scrapyard | Met Revision 17 8 | -11/Scrapyard | Discovered new exit (range 16) 50 | -11/Scrapyard | Entered Materials 157 | -10/Materials | Discovered new exit (range 16) 243 | -10/Materials | Crushed by falling debris 243 | -10/Materials | System corruption reached 10% 274 | -10/Materials | Lost 3 parts (1p1n1u) 283 | -10/Materials | Entered another Materials area 283 | -9/Materials | Evolved 2 slots: Propulsion x1, Utility x1 295 | -9/Materials | Central database locked down 322 | -9/Materials | Build established: Mutant 515 | -9/Materials | Destroyed 7 combat bots 616 | -9/Materials | Discovered new exit (range 15) 634 | -9/Materials | Entered another Materials area 634 | -8/Materials | Evolved 2 slots: Utility x1, Weapon x1 657 | -8/Materials | Central database locked down 735 | -8/Materials | Garrison activated, responded to threat 765 | -8/Materials | Self-destructed Last Messages --------------- 00735_ U-05 Engineer destroyed. 00735_ G-47 Trooper calls for garrison reinforcements. 00735_ ALERT: Activating Garrison Access M001. 00735_ K-01 Serf collects debris. 00736_ Wheel+ destroyed. 00739_ K-01 Serf collects debris. 00748_ Acquired 29 matter. 00751_ G-47 Trooper destroyed. 00753_ R-06 Scavenger collects Aluminum Leg. 00754_ Acquired 22 matter. 00756_ G-47 Trooper destroyed. 00756_ R-06 Scavenger collects Terrain Scan Processor. 00756_ W-25 Informer sends out distress signal. 00758_ Destroyed Lgt. Nuclear Core. 00759_ The unstable cave ceiling collapses. 00760_ Critical hit (Burn: +37). 00763_ Wheel+ destroyed. 00763_ Acquired 1 matter. Map ----- +----------------------------------------------------+ | ?????????????????????????????????????????????????? | | ?????????????????????????????????????????????????? | | ?????????????????????????????????????????????????? | | ?????????????????????????????????????????????????? | | ?????????????????????????????????????????????????? | | ?????????????????????????????????????????????????? | | ?????????????????????????????????????????????????? | | ?????????????????????????????????????????????????? | | ?????????????????????????????????????????????????? | | ?????????????????????????????????????????????????? | | ???????????????????????"""???????????????????????? | | ????????????????????? w ???????????????????????? | | ????????????????????# ???????????????????????? | | ????????????????????# ?##????????????????????? | | ?????????????? ????# ? ????????????????????? | | ?????????????? ???# ? ?? ?????????????????? | | ??????????????? ? # ? "????????????????????? | | ???????????????? ?#g # ?????????????????????? | | ????????????????? # g # ?????????????????????? | | ?????????????????? # gg ?????????? ??????????? | | ??????????????#+##+# #########?????????????? | | ?????????????## = ## "" #?????????????? | | ?????????????? *%g ## ""S #?????????????? | | ????????????????? # "" #?????#???????? | | ???????????????????## * # ##?????????#??? | | ??????????????#????## @[ #?????????????? | | ???????????????????# g! #######?#?????? | | ???????????????????# ### ##????#?? | | ???????????????????## ##??????? | | ???????????????"????# " #?#?????? | | ????????????????????# ##??#???? | | ??????????????????#?## r #??????? | | ?????????????????????# ## ####### ! #######?? | | ?????????????????????# ?###?## #?? | | ?????????????????????# ??#???# ""#?? | | ?????????????????????# ???? + Y"#?? | | ???????????????????#?# #?????# # # ""#?? | | ????????????????????? ##??#?# # # #?? | | ????????????????????###+##??#??# # # [ #?" | | ???????????????????????????????# ############?? | | ?????????????????????????????#?# #????????#??? | | ?????????????????????????"?????+ #????????#???# | | ?????????????????????????? ????#####??##?????????? | | ???????????????????????? ? ???????? ?#??????????#? | | ????????????????????????????#????????????????????? | | ?????????????????????????????????????????????????? | | ?????????????????????????????? ?????#????????????? | | ????????????????????????????? ???? ??????????????? | | ?????????????????????????????????? ???????????#?#? | | ???????????????????????????????????#?????????????? | +----------------------------------------------------+ Best States ------------- Heat Dissipation 31 Energy Generation 14 Energy Capacity 160 Matter Stores 246 Matter Capacity 300 Sight Range 16 Terrain Scan Range 16 Terrain Scan Density 10 Armor Coverage 150 Evasion (%) 50 Item Schematics ----------------- None Robot Schematics ------------------ None Fabricated ------------ Nothing Repaired ---------- Nothing Studied --------- Wheel | -9/Materials | Hacked Rocket Launcher | -8/Materials | Hacked Lgt. Ion Engine | -8/Materials | Hacked Com. Wheel | -8/Materials | Hacked Assault Rifle | -8/Materials | Hacked Alien Tech Used ----------------- None Achievements -------------- You Again Challenges ------------ None Game ------ Seed HypervelocityHeavyMapper Manual? 0 Play Time 00:12:43 Cumulative 8.7 hours Start 2025.11.17 @ 16:28:47 End 2025.11.17 @ 16:40:53 Sessions 1 Manual Loads 0 Difficulty Rogue Special Mode None Game No. 18 Rogue 7 Adventurer 11 Explorer 0 Win Type - Total 0 Types 0/0/0/0/0/0/0/0/0/0 Lore% 3 Gallery% 16 Achievement% 11 Wizard Run 0 Options --------- Layout 2 ASCII 0 Keyboard 0 Movement Mouse Keybinds 0 Fullscreen 2 Font 24/Smallcaps Map View 50x44 Zoom Use 0% Tactical HUD 1 Map Filters NONE Filters NONE Steam 1 RUN: 7f7f4319-8e9c-4c16-b5c8-17bdac6c4dab